[Event "Italian-ch Teams-B 2022"]
[Site "Montesilvano"]
[Date "2022.04.19"]
[Round "1.4"]
[White "Bolognese, Leonardo"]
[Black "Simoli, Sergio"]
[Result "0-1"]
[ECO "A43"]
[WhiteElo "1998"]
[BlackElo "2262"]
[Annotator "TA"]
[PlyCount "68"]
[EventDate "2022.04.19"]
[EventType "team-tourn"]
[EventCountry "ITA"]
[SourceTitle "playchess.com"]
[Source "ChessBase"]
[SourceQuality "1"]
[TimeControl "40/5400+30:1800+30"]

{[%evp 9,68,20,19,14,14,11,12,4,6,14,11,0,8,-1,29,20,41,-12,0,-81,-9,-75,-75,-160,-162,-164,-152,-168,-172,-168,-161,-161,-166,-234,-183,-238,-193,-383,-370,-363,-364,-368,-357,-358,-331,-368,-346,-460,-459,-463,-460,-465,-485,-543,-537,-621,-612,-615,-610,-578,-569]} 1. d4 {[%emt 0:00:03][%cal Bd2d4,Bd4d5][%mdl 32]} c5 {[%emt 0:02:30]} 2. d5 {[%emt 0:00:26]} e6 {[%emt 0:00:40]} 3. c4 {[%emt 0:00:38]} b5 {[%emt 0:01:52]} 4. Qc2 {[%emt 0:10:26]} Nf6 {[%emt 0:10:01]} 5. e4 {[%emt 0:09:20]} bxc4 $1 {[%emt 0:10:57]} 6. Bxc4 {[%emt 0:03:31] A43: Schmid Benoni.} exd5 {[%emt 0:01:06]} 7. exd5 {[%emt 0:00:51]} Be7 {[%emt 0:01:30]} 8. Ne2 {[%emt 0:04:07][%cal Bg1e2,Be2g3,Bg3f5][%mdl 32] The position is equal.} O-O {[%emt 0:02:30]} 9. O-O {[%emt 0:01:17]} d6 {[%emt 0:02:05]} 10. Nbc3 {[%emt 0:03:25]} Nbd7 {[%emt 0:02:41][%cal Bb8d7,Bd7e5,Be5c4][%mdl 32]} 11. Ng3 {[%emt 0:20:24]} Re8 {[%emt 0:11:42] [#]} (11... Nb6 $5 {[%cal Rb6c4]} 12. b3 Rb8 $11) 12. Nf5 $146 {[%emt 0:09:48]} ({Predecessor:} 12. Bb5 a6 13. Bc6 Rb8 14. Re1 Bb7 15. Bxb7 Rxb7 16. Nf5 Nb6 17. Rd1 Bf8 18. Bg5 {1-0 (34) Carstens Dobuchak,T (2184)-Santos,R (2113) Tornelo INT 2020}) 12... Bf8 {[%emt 0:01:28]} 13. Bf4 {[%emt 0:02:52]} (13. Bb5 $14) 13... Ne5 {[%emt 0:09:30]} (13... Nb6 {keeps more tension.} 14. Bb5 Nbxd5 15. Nxd5 Nxd5 16. Bxe8 Nxf4 17. Qe4 Bxf5 18. Qxf4 Be6) 14. b3 {[%emt 0:06:04]} (14. Be2 $11 {keeps the balance.}) 14... Rb8 {[%emt 0:12:37]} (14... Nxc4 $17 15. bxc4 Qd7) 15. Rfe1 {[%emt 0:08:45]} (15. Be2 $11 {remains equal.}) 15... Nxc4 $17 {[%emt 0:05:12] Black keeps a firm grip on the game.} 16. Rxe8 {[%emt 0:00:58]} ({White should try} 16. bxc4 Rxe1+ 17. Rxe1) 16... Nxe8 {[%emt 0:00:14]} 17. bxc4 {[%emt 0:00:11] [#]} Qf6 $1 {[%emt 0:00:41]} 18. g4 {[%emt 0:02:00]} Bxf5 {[%emt 0:22:14]} 19. gxf5 {[%emt 0:00:12]} Qd4 {[%emt 0:00:00][%csl LRc4,LRf4]} 20. Qd2 {[%emt 0:03:54]} Qxc4 {[%emt 0:00:00]} 21. Rc1 {[%emt 0:00:00]} (21. Re1 {was necessary.}) 21... Nf6 {[%emt 0:00:00] Hoping for ...Rb4.} 22. Bg3 {[%emt 0:03:46]} (22. f3 {might work better.}) 22... h5 {[%emt 0:00:00] [#] Threatens to win with ...h4.} 23. Qf4 {[%emt 0:03:39] Prevents h4.} (23. h3) 23... Rb4 $19 {[%emt 0:00:00]} 24. Qxc4 {[%emt 0:05:04]} Rxc4 {[%emt 0:00:00]} 25. Ne2 {[%emt 0:00:01]} Rxc1+ {[%emt 0:00:00]} 26. Nxc1 {[%emt 0:00:01]} Nxd5 {[%emt 0:00:00][%mdl 4096] Endgame KBN-KBN} 27. Kf1 {[%emt 0:00:09]} Be7 {[%emt 0:00:00]} 28. h3 {[%emt 0:01:08]} Kf8 {[%emt 0:00:00] Black is clearly winning.} 29. Ke2 {[%emt 0:00:52]} Ke8 {[%emt 0:00:00]} 30. Kd3 {[%emt 0:00:35]} Kd7 {[%emt 0:00:00]} 31. Kc4 {[%emt 0:00:29]} Kc6 {[%emt 0:00:00]} 32. Ne2 {[%emt 0:00:52]} Bf6 {[%emt 0:00:00]} 33. Bh2 {[%emt 0:00:39]} h4 {[%emt 0:00:00]} 34. Ng1 {[%emt 0:00:31]} Ne7 {[%emt 0:08:00] Weighted Error Value: White=0.42/Black=0.10 (very precise)} 0-1

[Event "Italian-ch Teams-B 2022"]
[Site "Montesilvano"]
[Date "2022.04.19"]
[Round "1.4"]
[White "Budyi, Danylo"]
[Black "Zamengo, Fulvio"]
[Result "1/2-1/2"]
[ECO "C01"]
[WhiteElo "1910"]
[BlackElo "2404"]
[Annotator "TA"]
[PlyCount "71"]
[EventDate "2022.04.19"]
[EventType "team-tourn"]
[EventCountry "ITA"]
[SourceTitle "playchess.com"]
[Source "ChessBase"]
[SourceQuality "1"]
[TimeControl "40/5400+30:1800+30"]

{[%evp 9,71,14,16,0,5,1,5,8,13,0,9,-7,7,0,5,0,6,8,7,13,8,-41,0,0,0,0,175,170,463,276,272,269,275,285,278,255,291,254,344,338,397,402,399,372,376,375,382,360,352,357,329,219,340,334,338,320,412,359,620,606,597,605,526,419]} 1. d4 {[%emt 0:00:03]} b6 {[%emt 0:00:34]} 2. e4 {[%emt 0:01:10]} e6 {[%emt 0:00:08]} 3. Be3 {[%emt 0:01:39]} Bb7 {[%emt 0:03:01]} 4. Nd2 {[%emt 0:06:04]} d5 {[%emt 0:02:47] [#]} 5. exd5 $146 {[%emt 0:01:07]} ({Predecessor:} 5. e5 Nd7 6. Be2 c5 7. c3 Ne7 8. f4 Nc6 9. Ngf3 Be7 10. O-O f6 11. Qe1 cxd4 12. cxd4 {0-1 (44) Perme,M (1201)-Ursic,J (1925) Komenda 2018}) 5... exd5 {[%emt 0:02:22]} 6. Ngf3 {[%emt 0:01:19] C01: French: Exchange Variation.} Nf6 {[%emt 0:00:08]} 7. Bd3 {[%emt 0:01:20]} Bd6 {[%emt 0:02:21]} 8. Ne5 {[%emt 0:13:27] The position is equal.} O-O {[%emt 0:03:26]} 9. f4 {[%emt 0:04:02]} c5 {[%emt 0:05:07]} 10. c3 {[%emt 0:01:25]} Nc6 {[%emt 0:00:04]} 11. O-O {[%emt 0:02:03]} cxd4 {[%emt 0:06:14]} 12. cxd4 {[%emt 0:05:38]} Nb4 {[%emt 0:12:32]} 13. Bb1 {[%emt 0:01:39]} Rc8 {[%emt 0:00:06]} 14. a3 {[%emt 0:00:58]} Nc6 {[%emt 0:00:08][%cal Bb4c6,Bc6e7,Be7g6][%mdl 32]} 15. Rf3 {[%emt 0:08:48]} (15. Re1 $11 {is more appropriate.}) 15... Ne7 {[%emt 0:06:30]} 16. Rh3 {[%emt 0:03:53][%cal Ob1h7] Strongly threatening Bxh7+!} Ng6 {[%emt 0:11:42]} 17. Ndf3 {[%emt 0:01:37]} Re8 $2 {[%emt 0:02:42] White stays focused until the end.} (17... Rc7 $11) 18. Ng5 $1 $18 {[%emt 0:07:19]} Rc7 {[%emt 0:00:51]} (18... Qe7 19. Bf5 (19. Ngxf7 Nxe5 20. Nxe5 g6 $18) 19... Rc4) 19. Ngxf7 {[%emt 0:01:15]} (19. Nexf7 $142 Rxf7 20. Bxg6 hxg6 21. Rh8+ $3 {[%mdl 512]} Kxh8 22. Nxf7+ Kh7 23. Nxd8 Rxd8 24. f5) 19... Rxf7 {[%emt 0:01:56]} 20. Bxg6 {[%emt 0:00:09][%mdl 64] Pin} Rc7 {[%emt 0:08:10]} (20... hxg6 $2 {[#]} 21. Rh8+ $3 {[%mdl 512]} Kxh8 22. Nxf7+ Kh7 23. Nxd8 $18) 21. Bxe8 {[%emt 0:15:37]} Qxe8 {[%emt 0:00:09]} 22. Rf3 {[%emt 0:06:47]} Bc8 {[%emt 0:00:22]} 23. f5 {[%emt 0:03:24]} Re7 {[%emt 0:07:09]} 24. Rc1 {[%emt 0:06:53]} Bd7 {[%emt 0:00:58]} 25. Bg5 {[%emt 0:03:24]} Bxe5 {[%emt 0:09:32]} 26. dxe5 {[%emt 0:00:17]} Rxe5 {[%emt 0:00:08]} 27. Bxf6 {[%emt 0:00:58]} gxf6 {[%emt 0:00:02]} 28. Rg3+ {[%emt 0:01:32]} Kh8 {[%emt 0:00:22]} 29. Qg4 {[%emt 0:00:33][%csl Gg3][%cal Rg4g7]} Qf8 {[%emt 0:00:11] Prevents Qg7+.} 30. Rf1 {[%emt 0:00:28]} Re4 {[%emt 0:02:42]} (30... Bb5 $142) 31. Qd1 {[%emt 0:00:26]} Qc5+ {[%emt 0:01:19]} 32. Kh1 {[%emt 0:00:09]} Ba4 {[%emt 0:01:02]} 33. Qc1 {[%emt 0:00:58]} d4 $2 {[%emt 0:00:23]} (33... Bb5) 34. Qh6 {[%emt 0:00:28][%cal Rh6f6] White is clearly winning.} Qe7 {[%emt 0:00:05]} 35. h4 {[%emt 0:00:28]} d3 {[%emt 0:03:20]} 36. Rxd3 {[%emt 0:00:38][%mdl 32768] Weighted Error Value: White=0.20 (precise) /Black=0.52. An unexpected result.} 1/2-1/2

[Event "Italian-ch Teams-B 2022"]
[Site "Montesilvano"]
[Date "2022.04.20"]
[Round "2.1"]
[White "Fier, Alexandr"]
[Black "Caprio, Guido"]
[Result "1/2-1/2"]
[ECO "C54"]
[WhiteElo "2583"]
[BlackElo "2426"]
[Annotator "TA"]
[PlyCount "74"]
[EventDate "2022.04.19"]
[EventType "team-tourn"]
[EventCountry "ITA"]
[SourceTitle "playchess.com"]
[Source "ChessBase"]
[SourceQuality "1"]
[TimeControl "40/5400+30:1800+30"]

{[%evp 10,74,17,2,16,29,36,17,51,43,62,67,61,70,67,54,72,65,58,52,62,73,100,87,100,91,100,73,191,194,180,-80,-52,-155,0,0,0,0,0,0,0,0,0,0,0,0,0,0,0,-102,-102,-93,-107,-93,-106,-84,-83,-208,-144,-204,-195,-202,-100,-108,-45,-105,0]} 1. e4 {[%emt 0:00:04]} e5 {[%emt 0:00:09]} 2. Nf3 {[%emt 0:00:06]} Nc6 {[%emt 0:00:04]} 3. Bc4 {[%emt 0:00:04]} Bc5 {[%emt 0:00:04]} 4. c3 {[%emt 0:00:04]} Nf6 {[%emt 0:00:03]} 5. d3 {[%emt 0:00:04]} d6 {[%emt 0:02:45]} 6. Bg5 {[%emt 0:00:05]} Bb6 {[%emt 0:04:09] C54: Giuoco Piano: 4 c3 Nf6, main lines with 5 d4 and 5 d3.} 7. Nbd2 {[%emt 0:00:45]} O-O {[%emt 0:02:58]} 8. O-O {[%emt 0:00:33]} Bg4 {[%emt 0:29:54] The position is equal.} 9. h3 {[%emt 0:00:45]} Bd7 {[%emt 0:00:31] [#]} 10. a4 $146 {[%emt 0:00:20]} ({Predecessor:} 10. b4 h6 11. Bh4 a6 12. a4 Qe7 13. Qe2 Nd8 14. a5 Ba7 15. Nh2 Ne6 16. Rfe1 {0-1 (74) Doudera,L (2235)-Hurka,J (1800) Czech email 2003}) 10... h6 {[%emt 0:00:13]} 11. Bh4 {[%emt 0:00:18]} Kh8 {[%emt 0:06:34]} 12. Kh1 {[%emt 0:11:29]} Qe7 {[%emt 0:10:11]} 13. Bd5 {[%emt 0:04:45]} a6 {[%emt 0:09:13]} 14. Nc4 {[%emt 0:02:30]} Ba7 {[%emt 0:00:05]} 15. d4 $1 {[%emt 0:05:20]} exd4 {[%emt 0:01:56]} 16. cxd4 {[%emt 0:07:02] e5 is the strong threat.} g5 {[%emt 0:00:23] [#]} 17. Nxg5 {[%emt 0:03:28]} hxg5 {[%emt 0:01:22]} 18. Bxg5 {[%emt 0:00:03]} Nxd4 {[%emt 0:11:58]} (18... Rg8 $16 19. f4 Rg7) 19. f4 $1 $18 {[%emt 0:01:19]} Rg8 {[%emt 0:00:24][%cal Og8g5]} 20. Bh4 {[%emt 0:01:05]} (20. e5 $1 $18 Rxg5 21. exf6 Qxf6 22. fxg5 Qxg5 23. Bxb7) 20... Rg6 {[%emt 0:03:19] And now ...Rh6 would win.} 21. Bxb7 {[%emt 0:02:13]} (21. e5 $1 $15 Nxd5 22. Bxe7 Nxe7 23. Kh2) 21... Rb8 $2 {[%emt 0:00:06]} (21... Rag8 $1 $17 22. e5 Bxh3 23. gxh3 (23. Bxf6+ $2 Qxf6 24. Qh5+ Rh6 $19) 23... Rh6 $1) 22. e5 $1 $11 {[%emt 0:01:27]} Rxb7 {[%emt 0:00:11]} 23. Bxf6+ {[%emt 0:00:04]} Rxf6 {[%emt 0:00:03]} 24. Qh5+ {[%emt 0:01:21]} Kg7 {[%emt 0:01:22]} 25. Qg5+ {[%emt 0:00:05][%mdl 64] Pin, Double Attack} Rg6 $1 {[%emt 0:00:14]} 26. Qxe7 {[%emt 0:00:05] Chess con chili.} Bc6 {[%emt 0:00:08]} 27. Ne3 {[%emt 0:18:21]} (27. exd6 $2 cxd6 28. Qg5 Rxg5 29. fxg5 Bd5 $19) 27... Rb3 {[%emt 0:01:47]} 28. Ra3 $1 {[%emt 0:23:54] Black must now prevent Rxb3.} (28. Qxc7 Bxg2+ $1 {[%mdl 512]} 29. Kh2 Rxe3) ({But not} 28. exd6 Rxg2 29. Qe5+ (29. Nxg2 $2 {leads to mate.} Rxh3+ 30. Kg1 Nf3#) (29. dxc7 Rg6+ 30. Kh2 Rxb2+) 29... f6 30. Qe7+ Kg6 $15) (28. Rfe1 $2 Bxg2+ $1 {[%mdl 512]} 29. Kg1 Be4+ 30. Qg5 Nf3+ 31. Kf1 Nxg5 $19) 28... Rxe3 $40 {[%emt 0:00:17][%mdl 128] Black is up to no good.} 29. Qf6+ {[%emt 0:02:18]} Rxf6 $17 {[%emt 0:00:51]} 30. exf6+ {[%emt 0:00:05]} Kxf6 {[%emt 0:00:04]} 31. Rxe3 {[%emt 0:00:03]} Bxa4 {[%emt 0:00:36]} 32. Ra3 {[%emt 0:05:06]} Bb5 {[%emt 0:00:13]} 33. Rfa1 {[%emt 0:00:45]} (33. Rc1 $17 {was called for.}) 33... Ne2 {[%emt 0:01:43]} 34. Rxa6 {[%emt 0:01:29]} (34. b4 $17 {was worth a try.}) 34... Bxa6 $19 {[%emt 0:00:07]} 35. Rxa6 {[%emt 0:00:02]} Ng3+ {[%emt 0:00:05]} ({Better is} 35... Be3 $19 36. Rc6 Bb6) 36. Kh2 $17 {[%emt 0:00:03]} Nf1+ {[%emt 0:00:05]} 37. Kh1 {[%emt 0:00:02] [#]} Ng3+ {[%emt 0:14:53] What a bad dream for Black.  Weighted Error Value: White=0.26 (precise) /Black=0.24 (precise)} (37... Be3 $1 $17 38. Ra4 d5) 1/2-1/2

[Event "Italian-ch Teams-B 2022"]
[Site "Montesilvano"]
[Date "2022.04.20"]
[Round "2.1"]
[White "Drasko, Milan"]
[Black "Vocaturo, Daniele"]
[Result "1/2-1/2"]
[ECO "A30"]
[WhiteElo "2398"]
[BlackElo "2614"]
[Annotator "TA"]
[PlyCount "49"]
[EventDate "2022.04.19"]
[EventType "team-tourn"]
[EventCountry "ITA"]
[SourceTitle "playchess.com"]
[Source "ChessBase"]
[SourceQuality "1"]
[TimeControl "40/5400+30:1800+30"]

{[%evp 9,49,0,0,0,1,-6,-9,-18,-6,-12,-6,-4,0,-27,-11,-21,-14,-24,-18,-10,-19,-22,0,0,0,0,0,0,0,0,-4,-5,11,3,5,0,7,3,19,4,18,7]} 1. Nf3 {[%emt 0:01:59]} d5 {[%emt 0:00:55]} 2. g3 {[%emt 0:00:11]} Nf6 {[%emt 0:00:44]} 3. Bg2 {[%emt 0:00:09]} c5 {[%emt 0:00:56]} 4. O-O {[%emt 0:00:31]} Nc6 {[%emt 0:00:23]} 5. c4 {[%emt 0:01:08]} d4 {[%emt 0:02:05]} 6. e3 {[%emt 0:00:30] A30: Symmetrical English: Double Fianchetto and Hedgehog.} e5 {[%emt 0:00:20]} 7. exd4 {[%emt 0:00:39]} cxd4 {[%emt 0:00:22] was the old line (7...exd4).} 8. d3 {[%emt 0:00:47][%cal Of3e5]} Nd7 {[%emt 0:03:00]} 9. b3 {[%emt 0:12:54]} Be7 {[%emt 0:02:39]} 10. Ba3 {[%emt 0:04:31]} O-O {[%emt 0:01:39]} 11. Ne1 {[%emt 0:05:05] [#]} a5 $146 {[%emt 0:05:21]} ({Predecessor:} 11... Re8 12. Bxe7 Qxe7 13. a3 a5 14. Nd2 Nc5 15. Ne4 Ne6 16. Nd2 f5 17. Bd5 Kh8 {1-0 (40) Bischoff,K (2545)-Khenkin,I (2644) Saarbruecken 2009}) 12. Qe2 {[%emt 0:19:07]} Re8 {[%emt 0:06:23]} 13. Bxe7 $1 {[%emt 0:09:19]} Qxe7 {[%emt 0:02:19]} 14. Nd2 {[%emt 0:00:37] The position is equal.} Nc5 {[%emt 0:06:20]} 15. f4 {[%emt 0:06:12]} exf4 {[%emt 0:09:18]} 16. Qxe7 {[%emt 0:00:25]} Rxe7 {[%emt 0:00:07]} 17. Rxf4 {[%emt 0:04:06]} Bd7 {[%emt 0:05:46]} 18. Ne4 {[%emt 0:01:33]} b6 {[%emt 0:05:43]} 19. Rd1 {[%emt 0:11:36]} Rd8 {[%emt 0:09:00]} 20. Nc2 {[%emt 0:07:40][%cal Be1c2,Bc2d4,Bd4f5][%mdl 32]} Ne5 {[%emt 0:09:58]} 21. Nxd4 {[%emt 0:03:46]} Ncxd3 {[%emt 0:01:00]} 22. Nf5 {[%emt 0:01:28]} Ree8 {[%emt 0:05:16]} 23. Rff1 {[%emt 0:00:22]} Bc6 {[%emt 0:05:17]} 24. Nc3 {[%emt 0:02:04]} Bxg2 {[%emt 0:03:56]} 25. Kxg2 {[%emt 0:06:21] An even fight not without its subleties.  Weighted Error Value: White=0.03 (flawless) /Black=0.05 (flawless)} 1/2-1/2

[Event "Italian-ch Teams-B 2022"]
[Site "Montesilvano"]
[Date "2022.04.20"]
[Round "2.1"]
[White "Lazic, Miroljub"]
[Black "Moroni, Luca Jr"]
[Result "1/2-1/2"]
[ECO "D76"]
[WhiteElo "2322"]
[BlackElo "2588"]
[Annotator "TA"]
[PlyCount "71"]
[EventDate "2022.04.19"]
[EventType "team-tourn"]
[EventCountry "ITA"]
[SourceTitle "playchess.com"]
[Source "ChessBase"]
[SourceQuality "1"]
[TimeControl "40/5400+30:1800+30"]

{[%evp 19,71,17,16,-8,-2,-2,-6,-6,-23,-21,0,-6,0,0,28,50,48,44,106,84,112,102,84,59,64,12,14,20,120,120,104,94,235,197,244,244,305,305,305,305,279,222,913,180,195,0,0,0,0,0,0,0,0,0]} 1. Nf3 {[%emt 0:00:04]} d5 {[%emt 0:09:55]} 2. g3 {[%emt 0:00:34]} g6 {[%emt 0:00:26]} 3. Bg2 {[%emt 0:01:01]} Bg7 {[%emt 0:01:09]} 4. O-O {[%emt 0:00:14]} Nf6 {[%emt 0:00:08][%cal Bg8f6,Bf6d5,Bd5b6][%mdl 32]} 5. c4 {[%emt 0:01:21]} O-O {[%emt 0:04:25]} 6. cxd5 {[%emt 0:03:23]} Nxd5 {[%emt 0:00:10]} 7. Nc3 {[%emt 0:00:10]} Nc6 {[%emt 0:05:18]} 8. d4 {[%emt 0:04:45]} Nb6 {[%emt 0:00:25]} 9. d5 {[%emt 0:08:34]} Na5 {[%emt 0:00:05]} 10. e4 {[%emt 0:01:29]} c6 {[%emt 0:00:38]} 11. Qe2 {[%emt 0:09:55] 11.h3 is the recent fashion. D76: Fianchetto Grünfeld: Main Line with 7...Nb6.} cxd5 {[%emt 0:02:44]} 12. Nxd5 {[%emt 0:05:28]} Nxd5 {[%emt 0:08:52]} 13. exd5 {[%emt 0:01:30]} Qxd5 {[%emt 0:02:31]} 14. Qxe7 {[%emt 0:01:00]} Nc6 {[%emt 0:08:57]} 15. Qh4 {[%emt 0:01:37] [#] Strongly threatening Ng5.} h5 $146 {[%emt 0:10:37]} (15... Qb5 $5 {[%cal Rc8f5]}) ({Predecessor:} 15... Qh5 16. Qxh5 gxh5 17. Nh4 Re8 18. Bg5 a5 19. Rae1 Bg4 20. Rxe8+ Rxe8 21. h3 Be6 {½-½ (63) Vijayalakshmi,S (2414)-Sasikiran,K (2658) Mumbai 2003}) 16. Ng5 {[%emt 0:15:56][%cal Bf3g5,Bg5e4,Be4d6][%mdl 32]} Qf5 {[%emt 0:05:22]} 17. h3 {[%emt 0:05:28]} Re8 {[%emt 0:04:26]} 18. Ne4 $36 {[%emt 0:05:44][%mdl 2048] Inhibits Bf6. Nd6 is the strong threat. White is pushing.} Be6 {[%emt 0:16:55]} (18... Re5 $14) 19. Nd6 $16 {[%emt 0:00:27][%csl LRb7,LRe8,LRf5]} Qc2 {[%emt 0:04:37]} 20. Nxe8 {[%emt 0:03:53]} Rxe8 {[%emt 0:01:19]} 21. Bg5 {[%emt 0:01:29]} Qxb2 {[%emt 0:04:43]} 22. Rab1 {[%emt 0:00:25]} ({White should try} 22. Rad1 $14) 22... Qxa2 $11 {[%emt 0:00:05]} 23. Rxb7 {[%emt 0:00:17]} Bd5 {[%emt 0:01:32] [#]} (23... Nd4 $1 $11) 24. Rd7 $1 $16 {[%emt 0:04:16]} Bxg2 {[%emt 0:01:23]} 25. Kxg2 {[%emt 0:00:06] Black must now prevent Rc1.} Qb3 {[%emt 0:04:58]} (25... Re2 $16 {was worth a try.}) 26. Rfd1 {[%emt 0:04:25]} Ne5 {[%emt 0:01:13]} (26... Kh7 $142) 27. Qe4 $18 {[%emt 0:00:44]} a5 {[%emt 0:00:32][%cal Ba7a5,Ba5a4][%mdl 32]} 28. Rd8 {[%emt 0:14:08]} Rxd8 {[%emt 0:00:01]} 29. Rxd8+ {[%emt 0:00:02]} Kh7 {[%emt 0:00:02]} 30. Qd5 {[%emt 0:00:51]} Nc4 $2 {[%emt 0:01:17]} (30... a4 31. Bf4 Qxd5+ 32. Rxd5 Nc4) 31. Kh2 $2 {[%emt 0:01:06]} ({Don't blunder} 31. Qxf7 $2 {[#]} Ne3+ $1 {[%mdl 512]} 32. Bxe3 Qxf7 $19) (31. Rd7) 31... a4 {[%emt 0:00:31]} 32. Qxf7 $2 {[%emt 0:01:05]} ({Better is} 32. Kg1 $18) 32... Ne5 $11 {[%emt 0:00:01] The position is equal.} 33. Qxb3 {[%emt 0:04:19]} axb3 {[%emt 0:00:01]} 34. Rb8 {[%emt 0:00:54]} Nf3+ {[%emt 0:00:28]} 35. Kg2 {[%emt 0:00:01]} Nxg5 {[%emt 0:00:17]} 36. Rxb3 {[%emt 0:01:49] Weighted Error Value: White=0.42/Black=0.26 (precise)} 1/2-1/2

[Event "Italian-ch Teams-B 2022"]
[Site "Montesilvano"]
[Date "2022.04.20"]
[Round "2.2"]
[White "Valsecchi, Alessio"]
[Black "Paltrinieri, Nicholas"]
[Result "1-0"]
[ECO "C02"]
[WhiteElo "2524"]
[BlackElo "2344"]
[Annotator "TA"]
[PlyCount "49"]
[EventDate "2022.04.19"]
[EventType "team-tourn"]
[EventCountry "ITA"]
[SourceTitle "playchess.com"]
[Source "ChessBase"]
[SourceQuality "1"]
[TimeControl "40/5400+30:1800+30"]

{[%evp 13,49,-2,6,6,27,20,44,48,57,58,52,55,52,27,129,130,118,84,170,166,158,108,110,97,147,141,130,139,323,249,251,268,337,326,365,360,351,341]} 1. e4 {[%emt 0:02:14]} e6 {[%emt 0:01:13]} 2. d4 {[%emt 0:00:07]} d5 {[%emt 0:00:05]} 3. e5 {[%emt 0:00:06]} c5 {[%emt 0:00:21]} 4. c3 {[%emt 0:00:06]} Nc6 {[%emt 0:00:05]} 5. Nf3 {[%emt 0:00:06]} Bd7 {[%emt 0:00:05]} 6. Be2 {[%emt 0:00:12]} Nge7 {[%emt 0:03:59]} 7. Na3 {[%emt 0:03:27][%cal Bb1a3,Ba3c2,Bc2e3][%mdl 32]} Ng6 {[%emt 0:04:09]} 8. h4 {[%emt 0:06:39][%cal Bh2h4,Bh4h5][%mdl 32] C02: French: Advance Variation.} cxd4 {[%emt 0:01:00]} 9. cxd4 {[%emt 0:00:07]} Bb4+ {[%emt 0:00:05]} 10. Kf1 {[%emt 0:00:09] White is slightly better.} Nge7 {[%emt 0:00:16]} 11. h5 {[%emt 0:10:02]} h6 {[%emt 0:00:45]} 12. Nc2 {[%emt 0:00:07]} Ba5 {[%emt 0:00:20]} 13. a3 {[%emt 0:02:35] [#]} f6 $146 {[%emt 0:05:27]} (13... Bb6 $11) ({Predecessor:} 13... Bb6 14. b4 O-O 15. g4 f6 16. exf6 Rxf6 17. g5 hxg5 18. Bxg5 Nf5 19. Qd2 Qf8 20. Bxf6 Qxf6 {½-½ (31) Karpatchev,A (2474)-Gomez,J (2527) Moscow 2011}) 14. exf6 {[%emt 0:15:58]} gxf6 {[%emt 0:00:43]} 15. Ne3 {[%emt 0:00:42]} Kf7 {[%emt 0:12:18] [#]} (15... Bb6 $16) 16. b4 $1 $18 {[%emt 0:06:49]} Bb6 {[%emt 0:00:32]} 17. Bb2 {[%emt 0:00:48]} (17. b5 $142) 17... Nc8 $16 {[%emt 0:21:12][%cal Be7c8,Bc8d6,Bd6b5,Bb5d4][%mdl 32]} 18. Nh4 {[%emt 0:13:03] &Bianco is more active.} N6e7 {[%emt 0:01:54]} (18... Nd6 $142) 19. Bd3 {[%emt 0:00:35]} (19. Ng6 $6 Nxg6 20. hxg6+ Kg7 $14) 19... Nd6 {[%emt 0:01:05]} 20. Qf3 {[%emt 0:01:58]} Bb5 $2 {[%emt 0:03:50] [#] A mistake that costs the game.} (20... Ne4 $16 {was necessary.} 21. Bxe4 dxe4 22. Qxe4 f5) 21. Bxb5 $18 {[%emt 0:00:50]} Nxb5 {[%emt 0:00:02]} 22. Ng4 {[%emt 0:00:49]} Nc6 {[%emt 0:05:43]} 23. Qd3 {[%emt 0:05:43]} Bxd4 {[%emt 0:01:04]} 24. Bxd4 {[%emt 0:00:30] Really sharp!} ({Not} 24. Qg6+ Ke7 25. Bxd4 Nbxd4 $18) 24... Nbxd4 {[%emt 0:01:26]} 25. b5 {[%emt 0:01:04] Weighted Error Value: White=0.07 (flawless) /Black=0.40} ({Weaker is} 25. Qg6+ Ke7 $16) 1-0